bitfinex/quotes_ETHUSD_20241009
["timestamp","ask_amount","ask_price","bid_price","bid_amount"]
[1728436156860,0.0475861,2444.4,2443.8,8.18376]
[1728436157177,0.0475861,2444.4,2443.9,4.09178]
[1728436157306,4.1385761,2444.4,2443.9,0.897492]
[1728436157500,4.1385761,2444.4,2443.9,4.989192]
[1728436157718,0.0475861,2444.4,2443.9,4.989192]
[1728436158010,0.0475861,2444.4,2444.0,4.0916]
[1728436158708,0.20993202,2444.3,2443.7,2.49456907]
[1728436158907,0.8046,2444.2,2443.8,4.09189]
[1728436159106,0.85195497,2444.2,2443.8,4.09189]
[1728436159431,0.85195497,2444.2,2443.7,0.4635964]
[1728436159432,4.94327497,2444.2,2443.7,0.4635964]
[1728436159738,4.89592,2444.2,2443.7,0.4635964]
[1728436160038,4.89592,2444.2,2443.7,4.5557064]
[1728436160238,4.09154,2444.1,2443.5,0.7821]
[1728436160538,4.09154,2444.1,2443.5,4.87454]
[1728436161517,4.09154,2444.1,2443.5,4.09244]
[1728436161722,4.09154,2444.1,2443.6,5.210806]
[1728436162232,4.89592,2444.2,2443.7,4.09214]
[1728436162428,0.8046,2444.2,2443.7,4.09214]
[1728436162956,0.8046,2444.2,2443.8,4.09197]
[1728436163266,0.04721788,2444.1,2443.8,4.09197]
[1728436163467,0.04721788,2444.1,2443.8,5.0222476]
[1728436163963,0.04721788,2444.1,2443.8,0.9302776]
[1728436164167,0.04721788,2444.1,2443.6,4.09222]
[1728436164725,0.04721788,2444.1,2443.6,8.18442]
[1728436164923,0.04721788,2444.1,2443.7,4.09212]
[1728436165822,0.04721788,2444.1,2443.6,4.0922]
[1728436166063,0.04721788,2444.1,2443.8,4.09197]
[1728436166270,0.04721788,2444.1,2443.8,4.910387]
[1728436167059,0.04721788,2444.1,2443.8,0.818417]
[1728436167362,0.04721788,2444.1,2443.6,8.18443]
[1728436168576,0.04721788,2444.1,2443.7,4.09212]
[1728436169339,0.04721788,2444.1,2443.8,4.09196]
[1728436170642,0.04721788,2444.1,2443.6,8.18443]
[1728436170976,0.04721788,2444.1,2443.6,4.0922]
[1728436171476,0.04721788,2444.1,2443.6,9.302889]
[1728436171648,0.04721788,2444.1,2443.6,5.210679]
[1728436172458,0.04721788,2444.1,2443.6,9.302909]
[1728436172664,0.04721788,2444.1,2443.6,5.210679]
[1728436173380,0.04721788,2444.1,2443.6,9.302889]
[1728436173985,0.04721788,2444.1,2443.7,4.09212]
[1728436174542,0.04721788,2444.1,2443.6,5.210679]
[1728436174783,0.8102,2444.0,2443.6,4.0922]
[1728436174982,0.85565945,2444.0,2443.6,4.0922]
[1728436177385,0.85565945,2444.0,2443.4,4.09257]
[1728436177386,4.94731945,2444.0,2443.4,4.09253]
[1728436177574,4.94731945,2444.0,2443.5,4.09246]
[1728436177771,0.85565945,2444.0,2443.5,4.09246]
[1728436178476,0.85565945,2444.0,2443.3,0.7821]
[1728436178477,0.7648,2443.8,2443.3,4.09278]
[1728436178685,0.7648,2443.8,2443.5,4.09248]
[1728436178860,7.85965069,2444.1,2443.5,4.09248]
[1728436178861,0.04349202,2443.7,2443.5,4.09248]
[1728436179383,0.04339046,2443.6,2443.5,4.09248]
[1728436179548,0.7648,2443.9,2443.6,4.09226]
[1728436180568,0.7648,2443.9,2443.5,8.18486]
[1728436180886,0.7648,2443.9,2443.6,4.09228]
[1728436181086,0.7648,2443.9,2443.6,4.09229]
[1728436182501,0.7648,2443.9,2443.7,4.09206]
[1728436184078,0.8012,2444.2,2443.7,4.09205]
[1728436184996,0.04244721,2444.1,2443.9,4.0918]
[1728436186074,0.04244721,2444.1,2443.7,8.1841]
[1728436186273,0.04244721,2444.1,2443.7,5.0720867]
[1728436186472,0.04244721,2444.1,2443.8,4.09197]
[1728436186903,0.04244721,2444.1,2443.9,4.09181]
[1728436187258,0.04244721,2444.1,2443.9,4.09173]
[1728436187459,0.04244721,2444.1,2444.0,4.09165]
[1728436187762,0.04244721,2444.1,2444.0,4.909988]
[1728436187968,0.7678,2444.5,2444.0,4.909988]
[1728436188200,0.04248532,2444.1,2444.0,4.909988]
[1728436188497,0.7678,2444.5,2444.0,4.909988]
[1728436188678,0.04248717,2444.1,2444.0,4.909988]
[1728436188886,0.7678,2444.5,2444.0,4.909988]
[1728436189063,0.7678,2444.5,2444.1,0.9785618]
[1728436189403,4.85872,2444.5,2444.1,0.9785618]
[1728436189576,4.85872,2444.5,2443.9,4.09173]
[1728436189780,8.94964,2444.5,2443.9,4.09173]
[1728436189978,4.85872,2444.5,2443.9,4.09172]
[1728436190163,4.85872,2444.5,2444.0,4.09163]
[1728436191315,4.85872,2444.5,2443.9,4.09172]
[1728436191477,4.85872,2444.5,2443.9,8.673562]
[1728436191889,0.8048,2444.3,2443.5,4.91279]
[1728436192093,0.8048,2444.1,2443.7,4.09206]
[1728436193289,0.8048,2444.1,2443.8,4.09185]
[1728436194623,0.8048,2444.1,2443.9,4.09181]
[1728436195124,0.8048,2444.1,2443.7,8.18406]
[1728436195290,0.8048,2444.1,2443.7,4.992446]
[1728436195999,0.8048,2444.1,2443.8,4.09198]
[1728436196529,0.04222783,2444.0,2443.8,4.09198]
[1728436199765,0.04222783,2444.0,2443.9,4.09182]
[1728436200338,0.04222783,2444.0,2443.7,4.992446]
[1728436200511,0.04222783,2444.0,2443.8,0.4992446]
[1728436200709,3.76812069,2444.0,2443.5,1.70326907]
[1728436200939,0.83565854,2443.9,2443.4,5.79577907]
[1728436201154,4.92756854,2443.9,2443.4,1.70326907]
[1728436201306,4.8855,2443.8,2443.3,8.79594907]
[1728436201643,4.8855,2443.8,2443.2,1.70326907]
[1728436201644,8.65396069,2443.6,2443.2,1.70326907]
[1728436201947,0.7935,2443.6,2443.2,1.70326907]
[1728436202114,0.04156666,2443.5,2443.1,9.88933907]
[1728436202303,0.04156666,2443.5,2443.1,9.38913991]
[1728436202704,0.04156666,2443.5,2443.1,5.29609991]
[1728436203017,0.04156666,2443.5,2443.2,4.09299]
[1728436203219,0.04156666,2443.5,2443.1,9.38914991]
[1728436203412,0.04156666,2443.5,2443.2,1.1092419]
[1728436204307,0.04156666,2443.5,2443.4,4.09265]
[1728436204717,0.7935,2443.8,2443.4,4.09265]
[1728436204932,0.04164272,2443.5,2443.4,4.09265]
[1728436205134,0.7935,2443.8,2443.5,4.09238]
[1728436205308,3.76812069,2444.3,2443.7,4.09204]
[1728436205309,0.7935,2444.1,2443.7,4.09204]
[1728436206764,0.7935,2444.1,2443.6,1.200338]
[1728436206973,0.7935,2444.1,2443.7,4.09213]
[1728436207667,0.7935,2444.1,2443.8,4.09182]
[1728436207870,0.8101,2444.4,2443.9,0.818395]
[1728436208056,0.8101,2444.4,2443.6,2.11250707]
[1728436208368,0.8101,2444.4,2443.7,2.53006907]
[1728436209031,0.8101,2444.4,2444.1,4.09147]
[1728436209634,3.76812069,2444.7,2444.1,4.09147]
[1728436209635,7.42,2444.8,2444.3,4.09105]
[1728436209954,0.7909,2445.0,2444.5,4.92297]
[1728436210153,4.88099,2445.0,2444.3,9.01446]
[1728436210360,7.85828069,2444.9,2444.4,0.9423607]
[1728436210572,4.53602069,2444.7,2444.1,4.09138]
[1728436210736,8.62654069,2444.7,2444.0,8.18316]
[1728436210935,4.09067,2444.6,2444.0,4.09151]
[1728436211337,5.39865476,2444.7,2444.1,4.09148]
[1728436211635,5.39865476,2444.7,2444.0,4.09151]
[1728436211837,4.09067,2444.6,2444.0,4.09151]
[1728436212032,0.7679,2444.7,2444.0,0.90158]
[1728436212332,0.7679,2444.7,2444.4,4.09096]
[1728436212948,0.7679,2444.7,2444.2,4.91559]
[1728436213273,0.7679,2444.7,2444.3,4.09113]
[1728436214078,0.7679,2444.7,2444.2,4.91558]
[1728436214390,0.7679,2444.7,2444.2,4.09118]
[1728436214558,5.72113907,2444.7,2444.0,4.09155]
[1728436214963,0.03985807,2444.6,2444.1,4.09146]
[1728436215188,0.03985807,2444.6,2444.2,4.09121]
[1728436215350,0.03985807,2444.6,2444.1,4.09146]
[1728436216098,0.7615,2444.5,2444.0,4.09154]
[1728436216402,4.13066918,2444.4,2443.8,4.09193]
[1728436216549,0.8245,2444.3,2443.8,4.09193]
[1728436216751,0.03933142,2444.2,2443.8,4.09193]
[1728436217056,0.8245,2444.3,2443.8,4.09193]
[1728436217299,0.03919974,2444.1,2443.8,4.09193]
[1728436217473,4.91566,2444.3,2443.8,4.09193]
[1728436217474,0.03942585,2444.2,2443.8,4.09193]
[1728436217646,0.8245,2444.3,2443.8,4.09193]
[1728436217647,0.03916247,2444.0,2443.8,4.09193]
[1728436217849,4.91567,2444.3,2443.8,4.09193]
[1728436218084,0.03903076,2443.9,2443.6,8.593658]
[1728436218289,0.7501,2444.2,2443.6,4.501438]
[1728436218693,0.03919974,2444.1,2443.6,4.501438]
[1728436218900,0.03919974,2444.1,2443.8,4.09196]
[1728436219192,0.03919974,2444.1,2443.6,8.593618]
[1728436219496,0.03919974,2444.1,2443.6,4.501418]
[1728436219650,0.03919974,2444.1,2443.6,4.09218]
[1728436220082,0.03919974,2444.1,2443.5,0.7875]
[1728436220286,0.7995,2444.0,2443.4,4.09251]
[1728436220484,4.89124,2444.0,2443.4,4.09251]
[1728436220751,0.0389729,2443.9,2443.5,4.09239]
[1728436221196,0.7995,2444.0,2443.5,4.09239]
[1728436221408,0.03893562,2443.8,2443.6,4.09231]
[1728436221565,0.7995,2444.0,2443.6,4.09231]
[1728436221770,0.03906734,2443.9,2443.4,5.08137691]
[1728436221969,0.03906734,2443.9,2443.6,4.09229]
[1728436223599,0.03906734,2443.9,2443.5,0.50813769]
[1728436223771,0.03906734,2443.9,2443.5,4.60059769]
[1728436224267,0.03906734,2443.9,2443.5,4.09246]
[1728436224478,0.03906734,2443.9,2443.4,4.09251]
[1728436224702,0.03906734,2443.9,2443.5,4.09245]
[1728436224908,0.03906734,2443.9,2443.6,4.09231]
[1728436225205,0.03906734,2443.9,2443.8,4.09198]
[1728436225411,0.03906734,2443.9,2443.8,4.501178]
[1728436225612,0.03906734,2443.9,2443.8,0.409198]
[1728436225817,0.03906734,2443.9,2443.7,4.09214]
[1728436226889,0.03906734,2443.9,2443.5,4.09238]
[1728436227915,0.03906734,2443.9,2443.3,4.09272]
[1728436228229,0.03906734,2443.9,2443.4,4.09265]
[1728436228230,0.7784,2443.8,2443.4,4.09265]
[1728436228378,0.81733562,2443.8,2443.4,4.09265]
[1728436228573,0.81733562,2443.8,2443.0,1.70326907]
[1728436228772,0.81733562,2443.8,2442.7,5.79693907]
[1728436228773,0.7784,2443.3,2442.7,5.79693907]
[1728436229001,0.7784,2443.3,2442.7,4.09367]
[1728436229213,4.87125,2443.3,2442.7,4.09367]
[1728436229374,0.03805064,2443.2,2442.7,4.09367]
[1728436229573,0.03805064,2443.2,2442.7,9.086275]
[1728436230100,0.03805064,2443.2,2442.5,0.801]
[1728436230416,0.03805064,2443.2,2442.4,5.79747907]
[1728436230417,8.63818069,2443.1,2442.4,4.09421]
[1728436230573,8.67616091,2443.1,2442.4,4.09421]
[1728436230914,8.67616091,2443.1,2442.4,8.18844]
[1728436231115,8.67616091,2443.1,2442.4,5.05455747]
[1728436231289,4.54382069,2442.9,2442.4,5.05455747]
[1728436231488,3.76812069,2442.7,2442.2,4.73610472]
[1728436231817,0.07791064,2442.6,2442.2,4.73607472]
[1728436232370,0.07791064,2442.6,2442.3,4.09445]
[1728436232575,0.07791064,2442.6,2442.5,4.09416]
[1728436234611,0.7646,2442.7,2442.5,4.09416]
[1728436234833,0.07790475,2442.6,2442.5,4.09416]
[1728436235114,0.7646,2442.7,2442.5,4.09416]
[1728436235479,0.07781112,2442.6,2442.5,4.913021]
[1728436235682,0.7786,2443.0,2442.6,4.09387]
[1728436236939,0.7786,2443.0,2442.5,4.09416]
[1728436237122,0.7786,2443.0,2442.3,4.09443]
[1728436237123,3.76812069,2442.9,2442.3,4.09439]
[1728436237343,3.76812069,2442.9,2442.4,4.0942]
[1728436238231,3.76812069,2442.9,2442.5,4.09413]
[1728436241013,0.7786,2443.0,2442.5,4.09405]
[1728436241214,0.7786,2443.0,2442.9,4.09349]
[1728436241414,0.7786,2443.4,2443.1,8.18621]
[1728436241620,0.7786,2443.4,2443.1,4.09306]
[1728436242539,0.7786,2443.4,2442.5,0.48676465]
[1728436242540,0.7786,2443.4,2443.0,0.7793]
[1728436242695,0.7786,2443.8,2443.4,4.09264]
[1728436242900,3.76812069,2443.7,2443.2,4.09299]
[1728436243443,3.76812069,2443.7,2443.2,4.09287]
[1728436243671,3.76812069,2443.7,2443.2,8.18574]
[1728436243874,3.76812069,2443.7,2443.2,4.09287]
[1728436244328,3.76812069,2443.7,2443.2,4.580087]
[1728436244940,3.76812069,2443.7,2443.4,4.09265]
[1728436245160,0.07080849,2443.6,2443.4,4.09265]
[1728436246156,0.07080849,2443.6,2443.2,4.580087]
[1728436246358,0.07080849,2443.6,2443.3,4.09282]
[1728436246944,0.07080849,2443.6,2443.4,4.09265]
[1728436247345,0.07080849,2443.6,2443.5,4.09249]
[1728436247555,0.07080849,2443.6,2443.5,4.85879]
[1728436247883,8.1959,2444.1,2443.7,4.09201]
[1728436249179,11.96402069,2444.1,2443.7,4.09201]
[1728436250138,4.54402069,2444.1,2443.7,4.09201]
[1728436250634,8.63550069,2444.1,2443.5,4.09239]
[1728436250970,9.90817376,2444.1,2443.5,4.09239]
[1728436251642,0.7955,2443.8,2443.3,4.09273]
[1728436251972,1.27267307,2444.1,2442.9,12.18316]
[1728436251973,0.7955,2443.6,2442.9,12.18316]
[1728436252173,0.7955,2443.6,2443.1,4.09303]
[1728436252676,0.7955,2443.6,2443.1,8.18607]
[1728436252973,0.7955,2443.6,2442.9,0.7898]
[1728436252974,0.7955,2443.6,2443.3,4.09269]
[1728436253131,0.7955,2443.6,2443.4,4.09262]
[1728436253335,0.7955,2443.6,2443.3,4.09269]
[1728436253849,0.7955,2443.6,2443.1,8.18613]
[1728436254077,0.7955,2443.6,2443.1,4.09304]
[1728436254373,0.7955,2443.6,2443.2,4.09299]
[1728436254582,0.7955,2443.6,2443.1,4.09304]
[1728436254929,0.7955,2443.6,2443.1,8.18609]
[1728436255578,0.7955,2443.6,2443.1,4.09304]
[1728436255782,3.76812069,2443.5,2443.0,4.09332]
[1728436255946,7.86067069,2443.5,2442.9,4.09341]
[1728436256153,0.7759,2443.4,2442.9,8.1868]
[1728436256352,0.7759,2443.4,2442.9,4.09339]
[1728436256559,0.7759,2443.4,2442.9,4.884429]
[1728436256753,4.8686,2443.4,2442.8,4.09366]
[1728436256954,4.8686,2443.4,2442.7,7.91074]
[1728436256955,3.76812069,2443.3,2442.9,4.09346]
[1728436257175,3.83887333,2443.3,2442.9,4.09346]
[1728436257863,0.7999,2443.2,2442.7,8.18743]
[1728436258073,0.87052252,2443.2,2442.8,4.09365]
[1728436258240,0.87052252,2443.2,2442.7,4.0937]
[1728436258440,0.87052252,2443.2,2442.9,4.09348]
[1728436260194,0.87052252,2443.2,2442.9,4.09339]
[1728436260490,0.87052252,2443.2,2442.8,4.09366]
[1728436261082,0.7999,2443.2,2442.8,4.09366]
[1728436261243,0.7999,2443.2,2442.7,4.09373]
[1728436261444,0.07038492,2443.1,2442.7,4.09373]
[1728436262048,0.07038492,2443.1,2442.7,8.18746]
[1728436262270,0.7519,2443.0,2442.7,4.09373]
[1728436262545,0.82224705,2443.0,2442.7,4.09373]
[1728436262882,0.82224705,2443.0,2442.8,4.09363]
[1728436263391,0.82224705,2443.0,2442.7,4.09372]
[1728436264347,0.82224705,2443.0,2442.8,4.09356]
[1728436264547,0.82224705,2443.0,2442.5,4.09404]
[1728436264860,0.7849,2442.8,2442.5,4.09404]
[1728436265295,0.06986109,2442.7,2442.3,8.18879]
[1728436265464,0.7849,2442.8,2442.2,0.64153472]
[1728436265648,0.0698242,2442.6,2442.1,4.09468]
[1728436265987,0.7849,2442.8,2442.1,4.09468]
[1728436265988,0.7849,2442.8,2442.3,8.18898]
[1728436266290,0.7849,2442.8,2442.6,4.09399]
[1728436266582,3.76812069,2443.1,2442.6,4.09399]
[1728436266583,0.06995438,2442.7,2442.6,4.09399]
[1728436266987,0.7535,2443.1,2442.7,4.0938]
[1728436267489,0.7535,2443.1,2442.7,4.09373]
[1728436268085,0.7535,2443.1,2442.7,8.18745]
[1728436268396,0.7535,2443.1,2442.7,4.09372]
[1728436269250,0.7535,2443.1,2442.7,8.18744]
[1728436269585,0.7535,2443.1,2442.7,4.09372]
[1728436270452,0.7714,2443.0,2442.5,4.09405]
[1728436270873,3.76812069,2442.9,2442.5,4.09405]
[1728436271649,3.76812069,2442.9,2442.3,4.09437]
[1728436271848,3.76812069,2442.9,2442.1,4.882798]
[1728436271849,0.7611,2442.6,2442.1,4.882798]
[1728436272091,0.7611,2442.6,2442.1,4.09473]
[1728436272387,0.7611,2442.6,2442.2,4.09456]
[1728436273045,0.7611,2442.6,2442.3,4.09435]
[1728436273263,0.7611,2442.6,2442.2,4.09456]
[1728436273483,0.7611,2442.6,2442.2,4.585706]
[1728436273693,0.7611,2442.6,2442.2,0.491146]
[1728436273898,4.59022069,2442.9,2441.9,1.70326907]
[1728436274098,0.8221,2442.0,2441.7,0.6416609]
[1728436274317,0.8221,2442.0,2441.6,4.09552]
[1728436274601,7.86339069,2441.9,2441.3,0.64175274]
[1728436274796,7.86339069,2441.9,2441.3,5.31469337]
[1728436274998,3.76812069,2441.9,2441.5,4.09583]
[1728436275203,0.06506778,2441.8,2441.5,4.09583]
[1728436275699,0.06506778,2441.8,2441.6,4.09566]
[1728436276367,0.06506778,2441.8,2441.7,4.0955]
[1728436276778,0.8221,2442.0,2441.9,4.09517]
[1728436277709,4.53292069,2442.3,2441.8,4.09533]
[1728436278267,4.53292069,2442.3,2441.8,8.19055]
[1728436278578,4.53292069,2442.3,2441.8,4.09522]
[1728436278881,4.53292069,2442.3,2441.8,8.19044]
[1728436279079,4.53292069,2442.3,2441.8,4.09522]
[1728436279871,4.53292069,2442.3,2441.9,4.09514]
[1728436280298,4.53292069,2442.3,2441.8,4.09522]
[1728436280607,4.53292069,2442.3,2441.8,8.19045]
[1728436281015,4.53292069,2442.3,2441.8,4.09522]
[1728436282219,4.53292069,2442.3,2441.8,8.19044]
[1728436282423,0.7648,2442.3,2442.0,4.09487]
[1728436282630,0.7648,2442.3,2442.1,4.09477]
[1728436282783,0.7648,2442.3,2442.0,8.18977]
[1728436282982,0.7648,2442.3,2442.0,4.09487]
[1728436283288,0.7648,2442.3,2441.8,8.19047]
[1728436283484,0.7648,2442.3,2441.8,9.009517]
[1728436283707,0.7648,2442.3,2441.9,4.0951]
[1728436284322,3.76812069,2442.1,2441.8,0.819047]
[1728436284506,0.8251,2442.0,2441.4,4.09595]
[1728436284822,0.8251,2442.0,2441.5,4.09572]
[1728436285025,0.06073272,2441.9,2441.5,4.09572]
[1728436286210,0.06073272,2441.9,2441.4,5.00585734]
[1728436286211,0.06073272,2441.9,2441.6,4.09565]
[1728436287528,0.8169,2441.8,2441.4,5.00585734]
[1728436287710,0.87750245,2441.8,2441.4,5.00585734]
[1728436287921,0.87750245,2441.8,2441.5,4.09582]
[1728436290145,0.87750245,2441.8,2441.4,8.19176]
[1728436290436,0.87750245,2441.8,2441.5,4.09577]
[1728436292487,0.87750245,2441.8,2441.4,8.19179]
[1728436292742,0.87750245,2441.8,2441.5,4.0958]
[1728436294098,0.87750245,2441.8,2441.6,4.09558]
[1728436297016,0.87750245,2441.8,2441.6,8.19116]
[1728436297733,0.87750245,2441.8,2441.7,4.0955]
[1728436297933,0.87750245,2441.8,2441.6,4.09558]
[1728436298553,0.87750245,2441.8,2441.6,4.09556]
[1728436298715,0.87750245,2441.8,2441.6,8.19112]
[1728436299031,0.87750245,2441.8,2441.6,4.09556]
[1728436299547,0.06060245,2441.8,2441.7,4.0955]
[1728436300087,0.7988,2442.2,2442.0,8.18982]
[1728436300291,0.7988,2442.2,2442.0,4.09491]
[1728436300451,0.06089854,2442.1,2442.0,4.09491]
[1728436301254,0.06089854,2442.1,2441.9,8.19023]
[1728436302356,0.06089854,2442.1,2442.0,4.095]
[1728436302861,0.7558,2442.4,2442.1,4.0948]
[1728436304402,0.7558,2442.4,2442.2,4.09466]
[1728436304564,7.42,2442.6,2442.1,4.0948]
[1728436304565,0.8239,2442.6,2442.1,4.0948]
[1728436304768,0.8239,2442.6,2441.9,9.086083]
[1728436304769,4.0942,2442.5,2441.9,9.086083]
[1728436304969,4.0942,2442.5,2442.0,4.0949]
[1728436304970,0.8239,2442.4,2442.0,4.0949]
[1728436305210,0.88525441,2442.4,2442.0,4.0949]
[1728436305986,0.88525441,2442.4,2441.9,4.991003]
[1728436305987,0.88525441,2442.4,2441.9,0.895943]
[1728436306302,0.88525441,2442.4,2442.1,4.09473]
[1728436306913,0.88525441,2442.4,2442.0,0.8232]
[1728436306914,0.06135441,2442.4,2442.0,0.8232]
[1728436307084,0.06135441,2442.4,2442.3,4.0945]
[1728436307405,0.7654,2442.8,2442.3,4.0945]
[1728436307610,0.06129333,2442.4,2442.3,4.0945]
[1728436307815,0.7654,2442.8,2442.3,4.0945]
[1728436307971,0.06126368,2442.4,2442.3,4.0945]
[1728436308172,0.7654,2442.8,2442.4,4.09422]
[1728436308486,7.42,2443.0,2442.6,4.0939]
[1728436308487,0.7654,2443.0,2442.6,4.0939]
[1728436308683,0.7654,2443.0,2442.6,9.088924]
[1728436309066,0.7654,2443.0,2442.7,4.09382]
[1728436309307,0.7654,2443.4,2442.5,4.09403]
[1728436309611,4.85806,2443.4,2442.8,4.91672]
[1728436309973,0.7654,2443.4,2442.8,9.01028]
[1728436310611,0.7654,2443.4,2442.9,4.09346]
[1728436311111,0.7654,2443.4,2442.8,4.91672]
[1728436311334,0.7654,2443.4,2443.0,4.09328]
[1728436311612,0.7654,2443.4,2442.9,4.09344]
[1728436311809,0.7654,2443.4,2442.8,5.49524551]
[1728436311969,4.85806,2443.4,2442.8,5.49524551]
[1728436312169,4.85806,2443.4,2442.8,9.58878551]
[1728436312393,4.09283,2443.3,2442.8,5.49524551]
[1728436312599,7.86095069,2443.3,2442.8,4.09352]
[1728436312800,3.76812069,2443.3,2442.8,4.09352]
[1728436313412,3.76812069,2443.1,2442.6,4.09389]
[1728436313709,3.76812069,2443.1,2442.7,4.09374]
[1728436314703,3.76812069,2443.1,2442.6,4.09389]
[1728436315503,3.76812069,2443.1,2442.6,8.18779]
[1728436318410,4.90449,2443.2,2442.7,4.09379]
[1728436318774,4.90449,2443.2,2442.6,4.09389]
[1728436318978,4.90449,2443.2,2442.6,8.18779]
[1728436319174,4.90449,2443.2,2442.6,4.09389]
[1728436319516,6.18102707,2443.2,2442.6,4.09389]
[1728436320090,0.05994748,2443.1,2442.7,4.09381]
[1728436320280,4.15310748,2443.1,2442.6,4.09389]
[1728436320487,4.09355,2442.9,2442.4,4.09424]
[1728436320781,0.7945,2443.0,2442.4,4.09424]
[1728436321120,0.7945,2442.7,2442.4,4.09424]
[1728436321416,0.7945,2442.7,2442.4,4.09422]
[1728436321594,0.05924245,2442.6,2442.5,0.409422]
[1728436321788,0.05924245,2442.6,2442.5,4.503482]
[1728436322435,0.8009,2442.9,2442.7,4.09372]
[1728436322632,0.8009,2443.1,2442.7,8.18745]
[1728436323083,0.05976163,2443.0,2442.7,8.18745]
[1728436323285,0.05976163,2443.0,2442.6,4.09398]
[1728436323521,0.8009,2442.9,2442.5,4.09407]
[1728436323918,0.05959493,2442.8,2442.5,4.09407]
[1728436324122,0.05959493,2442.8,2442.5,8.597547]
[1728436324418,0.05959493,2442.8,2442.7,4.09383]
[1728436324626,0.8009,2443.1,2442.7,4.09383]
[1728436324783,0.05952421,2442.8,2442.7,4.09383]
[1728436325129,0.05737002,2442.8,2442.7,4.09383]
[1728436325422,0.8009,2443.1,2442.8,4.09353]
[1728436325728,0.8009,2443.4,2443.0,4.09332]
[1728436326038,0.8009,2443.4,2443.2,4.09295]
[1728436326188,0.8009,2443.4,2443.0,4.88192]
[1728436326504,0.8009,2443.4,2443.0,4.09321]
[1728436327097,0.8009,2443.4,2443.0,8.18642]
[1728436327790,0.8009,2443.4,2443.1,4.09315]
[1728436329729,0.8009,2443.4,2443.2,4.0929]
[1728436330059,0.8009,2443.4,2443.1,0.818636]
[1728436330188,0.8009,2443.4,2443.0,4.09317]
[1728436332330,0.8009,2443.4,2443.1,4.09305]
[1728436333038,0.8009,2443.4,2443.0,8.1864]
[1728436333399,0.8009,2443.4,2443.0,4.09317]
[1728436333741,4.89358,2443.4,2442.8,4.09356]
[1728436333948,4.89358,2443.4,2442.8,4.585326]
[1728436334549,4.89358,2443.4,2442.8,8.678886]
[1728436334846,4.89358,2443.4,2442.9,4.09346]
[1728436335068,0.05808829,2443.3,2442.9,4.09346]
[1728436335403,0.05808829,2443.3,2442.8,4.585326]
[1728436335635,0.05808829,2443.3,2442.9,0.4585326]
[1728436335849,0.05808829,2443.3,2442.9,4.5520126]
[1728436336447,0.05808829,2443.3,2442.9,0.4585326]
[1728436336746,0.05808829,2443.3,2443.0,4.09322]
[1728436339349,0.05808829,2443.3,2443.2,4.09299]
[1728436339522,0.05808829,2443.3,2443.2,4.987855]
[1728436339857,0.8114,2443.6,2443.3,4.09273]
[1728436340651,0.8114,2443.6,2443.4,4.09265]
[1728436340823,0.8114,2443.6,2443.4,8.18521]
[1728436341019,11.18812069,2444.0,2443.5,4.09249]
[1728436341218,0.7559,2443.9,2443.6,4.09221]
[1728436341751,0.7559,2443.9,2443.7,4.09211]
[1728436342554,0.7559,2443.9,2443.6,4.09221]
[1728436342753,0.7559,2443.9,2443.6,4.990116]
[1728436343645,7.85954069,2444.2,2443.7,4.09214]
[1728436343646,0.7686,2444.1,2443.7,4.09214]
[1728436344412,0.7686,2444.3,2443.8,4.09182]
[1728436344642,0.7686,2444.3,2444.0,4.09161]
[1728436345587,0.7686,2444.3,2443.8,4.09197]
[1728436345744,0.7686,2444.3,2443.8,4.6688676]
[1728436346078,0.7686,2444.3,2443.8,8.7607376]
[1728436346290,0.7686,2444.3,2443.9,4.0918]
[1728436346779,0.7686,2444.3,2443.8,8.7607576]
[1728436347375,0.7686,2444.3,2443.8,4.6688676]
[1728436347886,0.7686,2444.3,2443.8,8.7607476]
[1728436348662,0.7686,2444.3,2443.9,4.80478468]
[1728436350186,0.05516543,2444.2,2443.9,4.80478468]
[1728436350478,0.7686,2444.3,2443.9,4.80478468]
[1728436350685,0.05503541,2444.1,2443.9,4.80478468]
[1728436350845,0.7686,2444.3,2444.0,4.09161]
[1728436351051,0.7686,2444.3,2444.0,5.03895723]
[1728436351245,0.7686,2444.3,2444.0,5.03888723]
[1728436351591,0.7686,2444.3,2443.8,4.09189]
[1728436352081,0.7686,2444.3,2443.8,8.18378]
[1728436352692,4.52932069,2444.0,2443.2,4.09287]
[1728436352880,4.85889,2443.8,2443.2,4.09287]
[1728436353215,4.85889,2443.8,2443.3,4.09276]
[1728436353780,0.7669,2443.8,2443.4,4.09264]
[1728436356222,0.7669,2443.8,2443.5,4.09245]
[1728436356724,4.58962069,2444.0,2443.8,4.09198]
[1728436356928,0.8215,2444.0,2443.8,4.09198]
[1728436359324,0.7818,2444.3,2443.8,4.09198]
[1728436359684,4.87297,2444.3,2443.8,4.09198]
[1728436359985,6.14618607,2444.3,2443.6,4.501485]
[1728436360203,4.09134,2444.2,2443.7,4.09214]
[1728436360766,0.7903,2444.1,2443.6,4.0922]
[1728436361147,0.7903,2444.1,2443.6,8.18442]
[1728436362356,0.7903,2444.1,2443.6,4.0922]
[1728436364085,0.7903,2444.1,2443.6,8.18442]
[1728436365167,0.05382576,2444.0,2443.7,4.09213]
[1728436365375,0.05382576,2444.0,2443.6,4.0922]
[1728436365677,0.05382576,2444.0,2443.6,8.59365]
[1728436365988,0.05382576,2444.0,2443.6,4.50142]
[1728436366147,0.05382576,2444.0,2443.7,4.0921]
[1728436366848,0.05382576,2444.0,2443.6,4.50143]
[1728436367040,0.05382576,2444.0,2443.7,0.8183]
[1728436367240,0.05382576,2444.0,2443.8,0.531973]
[1728436367856,0.05382576,2444.0,2443.8,4.623833]
[1728436368060,0.05382576,2444.0,2443.9,4.09182]
[1728436368468,0.8045,2444.4,2444.0,4.0916]
[1728436368678,0.8045,2444.4,2444.0,8.18315]
[1728436368891,0.8045,2444.4,2444.0,9.0546623]
[1728436369402,0.8045,2444.4,2444.0,4.9630623]
[1728436369700,0.8045,2444.4,2444.0,4.9630523]